fUSD/lending_fUSD_20240616
["ID","MTS","AMOUNT","RATE_DAILY","PERIOD"]
[329663715,1718553078857,-500.0,0.00027761,8]
[329663716,1718553078872,-500.0,0.00027761,8]
[329663717,1718553078884,-500.0,0.00027761,8]
[329663718,1718553078924,-500.0,0.00027761,8]
[329663719,1718553078962,-1354.08,0.00027761,8]
[329663720,1718553078981,-500.0,0.00027761,8]
[329663721,1718553078993,-1354.08,0.00027761,8]
[329663722,1718553079004,-500.0,0.00027761,8]
[329663723,1718553079016,-500.0,0.00027761,8]
[329663724,1718553079028,-500.0,0.00027761,8]
[329663725,1718553079040,-500.0,0.00027761,8]
[329663726,1718553079051,-1354.08,0.00027761,8]
[329663727,1718553079084,-500.0,0.00027761,8]
[329663728,1718553079113,-500.0,0.00027761,8]
[329663729,1718553079124,-386.3,0.00027761,8]
[329663730,1718553079156,-1354.08,0.00027761,8]
[329663731,1718553079216,-500.0,0.00027761,8]
[329663732,1718553079227,-1354.08,0.00027761,8]
[329663733,1718553079252,-500.0,0.00027761,8]
[329663734,1718553079264,-1354.08,0.00027761,8]
[329663735,1718553079276,-196.3,0.00027761,8]
[329663736,1718553079287,-1354.08,0.00027761,8]
[329663737,1718553079324,-1354.08,0.00027761,8]
[329663738,1718553079349,-1354.27,0.00027761,8]
[329663739,1718553079359,-500.0,0.00027761,8]
[329663740,1718553079384,-500.0,0.00027761,8]
[329663741,1718553079404,-500.0,0.00027761,8]
[329663742,1718553079416,-500.0,0.00027761,8]
[329663743,1718553079432,-500.0,0.00027761,8]
[329663744,1718553079447,-500.0,0.00027761,8]
[329663745,1718553079461,-500.0,0.00027761,8]
[329663746,1718553079473,-500.0,0.00027761,8]
[329663747,1718553079484,-500.0,0.00027761,8]
[329663748,1718553079496,-500.0,0.00027761,8]
[329663749,1718553079518,-574.1,0.00027761,8]
[329663750,1718553079530,-500.0,0.00027761,8]
[329663751,1718553079552,-500.0,0.00027761,8]
[329663752,1718553079565,-500.0,0.00027761,8]
[329663753,1718553079578,-500.0,0.00027761,8]
[329663754,1718553079601,-500.0,0.00027761,8]
[329663755,1718553079634,-500.0,0.00027761,8]
[329663756,1718553079651,-500.0,0.00027761,8]
[329663757,1718553079667,-500.0,0.00027761,8]
[329663758,1718553079684,-500.0,0.00027761,8]
[329663759,1718553079718,-500.0,0.00027761,8]
[329663760,1718553079744,-500.0,0.00027761,8]
[329663761,1718553079756,-500.0,0.00027761,8]
[329663762,1718553079768,-500.0,0.00027761,8]
[329663763,1718553079780,-500.0,0.00027761,8]
[329663764,1718553079796,-500.0,0.00027761,8]
[329663765,1718553079811,-573.72,0.00027761,8]
[329663766,1718553079824,-562.86,0.00027761,8]
[329663767,1718553079836,-562.86,0.00027761,8]
[329663768,1718553079860,-562.86,0.00027761,8]
[329663769,1718553079874,-562.86,0.00027761,8]
[329663770,1718553079893,-562.86,0.00027761,8]
[329663771,1718553079910,-562.86,0.00027761,8]
[329663772,1718553079922,-500.0,0.00027761,8]
[329663773,1718553079933,-500.0,0.00027761,8]
[329663774,1718553079945,-562.86,0.00027761,8]
[329663775,1718553079967,-500.0,0.00027761,8]
[329663776,1718553080002,-562.86,0.00027761,8]
[329663777,1718553080014,-500.0,0.00027761,8]
[329663778,1718553080030,-500.0,0.00027761,8]
[329663779,1718553080065,-500.0,0.00027761,8]
[329663780,1718553080076,-563.02,0.00027761,8]
[329663781,1718553080086,-500.0,0.00027761,8]
[329663782,1718553080097,-500.0,0.00027761,8]
[329663783,1718553080113,-500.0,0.00027761,8]
[329663784,1718553080132,-500.0,0.00027761,8]
[329663785,1718553080149,-500.0,0.00027761,8]
[329663786,1718553080162,-500.0,0.00027761,8]
[329663787,1718553080185,-500.0,0.00027761,8]
[329663788,1718553080201,-500.0,0.00027761,8]
[329663789,1718553080230,-500.0,0.00027761,8]
[329663790,1718553080255,-500.0,0.00027761,8]
[329663791,1718553080297,-500.0,0.00027761,8]
[329663792,1718553080310,-500.0,0.00027761,8]
[329663793,1718553080323,-500.0,0.00027761,8]
[329663794,1718553080351,-500.0,0.00027761,8]
[329663795,1718553080369,-500.0,0.00027761,8]
[329663796,1718553080381,-500.0,0.00027761,8]
[329663797,1718553080394,-500.0,0.00027761,8]
[329663798,1718553080420,-500.0,0.00027761,8]
[329663799,1718553080444,-1955.62325,0.00027761,2]
[329663800,1718553080456,-675.73,0.00027761,8]
[329663801,1718553080467,-675.73,0.00027761,8]
[329663802,1718553080478,-500.0,0.00027761,8]
[329663803,1718553080504,-675.73,0.00027761,8]
[329663804,1718553080536,-675.73,0.00027761,8]
[329663805,1718553080548,-243.0,0.00027761,8]
[329663806,1718553080560,-675.73,0.00027761,8]
[329663807,1718553080576,-675.73,0.00027761,8]
[329663808,1718553080593,-675.73,0.00027761,8]
[329663809,1718553080607,-500.0,0.00027761,8]
[329663810,1718553080629,-675.73,0.00027761,8]
[329663811,1718553080640,-510.8,0.00027761,8]
[329663812,1718553080651,-675.73,0.00027761,8]
[329663813,1718553080662,-675.73,0.00027761,8]
[329663814,1718553080675,-675.73,0.00027761,8]
[329663815,1718553080687,-675.73,0.00027761,8]
[329663816,1718553080717,-675.73,0.00027761,8]
[329663817,1718553080738,-675.73,0.00027761,8]
[329663818,1718553080750,-675.73,0.00027761,8]
[329663819,1718553080762,-675.73,0.00027761,8]
[329663820,1718553080772,-675.73,0.00027761,8]
[329663821,1718553080797,-675.91,0.00027761,8]
[329663822,1718553080841,-500.0,0.00027761,8]
[329663823,1718553080868,-500.0,0.00027761,8]
[329663824,1718553080952,-500.0,0.00027761,8]
[329663825,1718553080967,-500.0,0.00027761,8]
[329663826,1718553081001,-500.0,0.00027761,8]
[329663827,1718553081068,-500.0,0.00027761,8]
[329663828,1718553081080,-500.0,0.00027761,8]
[329663829,1718553081098,-500.0,0.00027761,8]
[329663830,1718553081125,-500.0,0.00027761,8]
[329663831,1718553081144,-500.0,0.00027761,8]
[329663832,1718553081155,-500.0,0.00027761,8]
[329663833,1718553081167,-245.4,0.00027761,8]
[329663834,1718553081177,-32699.3267798,0.00027762,13]
[329663835,1718553081189,-768811.92891159,0.00027762,5]
[329663836,1718553081208,-341711.37674456,0.00027762,5]
[329663837,1718553081249,-4852.6012,0.00027762,5]
[329663838,1718553081276,-15215.26684458,0.00027762,5]
[329663839,1718553081304,-519.7933878,0.00027762,5]
[329663840,1718553081322,-714641.89050685,0.00027762,5]
[329663841,1718553081339,-285358.10949315,0.00027762,5]
[329663842,1718553081669,-176.98889232,0.00027297,2]
[329663843,1718553081699,-321.0,0.00027397,8]
[329663844,1718553081711,-500.0,0.00027397,8]
[329663845,1718553081722,-620.8,0.00027397,8]
[329663846,1718553081745,-500.0,0.00027397,8]
[329663847,1718553081758,-598.94053796,0.00027397,8]
[329663848,1718553081769,-500.0,0.00027397,8]
[329663849,1718553081787,-500.0,0.00027397,8]
[329663850,1718553081801,-500.0,0.00027397,8]
[329663851,1718553081812,-500.0,0.00027397,8]
[329663852,1718553081823,-500.0,0.00027397,8]
[329663853,1718553081839,-500.0,0.00027397,8]
[329663854,1718553081857,-500.0,0.00027397,8]
[329663855,1718553081872,-500.0,0.00027397,8]
[329663856,1718553081885,-500.0,0.00027397,8]
[329663857,1718553081896,-500.0,0.00027399,8]
[329663858,1718553081924,-3840.78630192,0.00027762,5]
[329663859,1718553083242,-2996.94929699,0.00027762,5]
[329663860,1718553083257,-1324.29662438,0.00027762,5]
[329663861,1718553083279,-18779.29245418,0.00027762,5]
[329663862,1718553083303,-29321.09744362,0.00027762,5]
[329663863,1718553083363,-500.0,0.00027397,8]
[329663864,1718553083375,-500.0,0.00027397,8]
[329663865,1718553083392,-500.0,0.00027397,8]
[329663866,1718553083403,-264.39,0.00027397,8]
[329663867,1718553083416,-642.47,0.00027397,8]
[329663868,1718553083427,-195.64,0.00027397,8]
[329663869,1718553083446,-197.14,0.00027758,8]
[329663870,1718553083461,-20986.11644675,0.00027762,5]
[329663871,1718553083927,-24104.6103854,0.00027762,5]
[329663872,1718553084078,-500.0,0.00027397,8]
[329663873,1718553084090,-38.675,0.00027397,8]
[329663874,1718553084103,-461.325,0.00027397,8]
[329663875,1718553084114,-500.0,0.00027397,8]
[329663876,1718553084127,-500.0,0.00027397,8]
[329663877,1718553084142,-500.0,0.00027397,8]
[329663878,1718553084155,-500.0,0.00027397,8]
[329663879,1718553084168,-241.41,0.00027397,8]
[329663880,1718553084180,-500.0,0.00027397,8]
[329663881,1718553084207,-225.48556248,0.0002776,2]
[329663882,1718553084219,-155.0,0.0002776,2]
[329663883,1718553084237,-40160.00184496,0.00027762,5]
[329663884,1718553084306,-265.15710906,0.00027397,8]
[329663885,1718553084339,-234.84289094,0.00027397,8]
[329663886,1718553084354,-77.22767995,0.0002776,2]
[329663887,1718553084403,-500.0,0.00027397,8]
[329663888,1718553084422,-500.0,0.00027397,8]
[329663889,1718553084443,-214.29546777,0.00027397,8]
[329663890,1718553084573,-611.967,0.00025,2]
[329663891,1718553084599,-222.03613039,0.00025,2]
[329663892,1718553084610,-139.78087233,0.00027397,8]
[329663893,1718553084626,-145.9236599,0.00027397,8]
[329663894,1718553084650,-156.6003401,0.00027397,8]
[329663906,1718554233953,-355.02989947,0.0001722,2]
[329663907,1718554233971,-186.48143496,0.0001722,2]
[329663908,1718554234008,-158.71096478,0.00017221,2]
[329663909,1718554234019,-155.0,0.00017222,2]
[329663910,1718554234040,-258.37137548,0.00017223,2]
[329663911,1718554234058,-217.64344301,0.00017223,2]
[329663912,1718554234071,-21036.92384708,0.00017259,2]
[329663913,1718554234103,-499.99,0.00019452,2]
[329663914,1718554234130,-12440.5142,0.000198,2]
[329663915,1718554234143,-1271.44060126,0.0002,2]
[329663916,1718554234160,-3898.38718173,0.0002,2]
[329663917,1718554234174,-226.81877563,0.000201,2]
[329663918,1718554234186,-326.5417784,0.00020575,2]
[329663919,1718554234210,-1250.0,0.00021,2]
[329663920,1718554234221,-523.71,0.00021228,2]
[329663921,1718554234249,-5000.0,0.00022468,2]
[329663922,1718554234263,-4686.89984761,0.00022588,2]
[329663923,1718554234276,-1300.0,0.00023,2]
[329663924,1718554234288,-150.0,0.00023163,2]
[329663925,1718554234300,-23890.0,0.00023163,2]
[329663926,1718554234313,-168.5,0.00023224,2]
[329663927,1718554234340,-250.0,0.00023297,2]
[329663928,1718554234352,-200.0,0.00023324,2]
[329663929,1718554234363,-268.86,0.00023341,2]
[329663930,1718554234381,-150.07,0.00023392,2]
[329663931,1718554234402,-200.0,0.00023406,2]
[329663932,1718554234432,-523.71,0.00023492,2]
[329663933,1718554234451,-250.0,0.00023493,2]
[329663934,1718554234465,-200.0,0.00023691,2]
[329663935,1718554234478,-250.0,0.00023728,2]
[329663936,1718554234490,-159.607,0.00023844,2]
[329663937,1718554234520,-709.61,0.00023997,2]
[329663938,1718554234565,-709.61,0.00024063,2]
[329663939,1718554234580,-1355.83,0.00024084,2]
[329663940,1718554234593,-2059.47906552,0.00024127,2]
[329663941,1718554234611,-709.61,0.00024128,2]
[329663942,1718554234622,-709.61,0.00024194,2]
[329663943,1718554234668,-167.16,0.00024246,2]
[329663944,1718554234711,-709.61,0.0002426,2]
[329663945,1718554234733,-17120.862,0.00024326,2]
[329663946,1718554234746,-709.61,0.00024326,2]
[329663947,1718554234759,-188.14,0.00024384,2]
[329663948,1718554234770,-709.61,0.00024392,2]
[329663949,1718554234783,-709.61,0.00024457,2]
[329663950,1718554234794,-709.61,0.00024523,2]
[329663951,1718554234811,-709.61,0.00024589,2]
[329663952,1718554234841,-709.61,0.00024655,2]
[329663953,1718554234854,-211.8139,0.00024665,2]
[329663954,1718554234898,-2856.0,0.000247,4]
[329663955,1718554234930,-709.61,0.00024721,2]
[329663956,1718554234945,-800.0,0.00024778,2]
[329663957,1718554234963,-709.61,0.00024787,2]
[329663958,1718554235000,-709.61,0.00024852,2]
[329663959,1718554235016,-329.76,0.00024884,2]
[329663960,1718554235054,-709.61,0.00024918,2]
[329663961,1718554235068,-160.87667664,0.00024984,2]
[329663962,1718554235113,-709.61,0.00024984,2]
[329663963,1718554235151,-834.00313039,0.00025,2]
[329663964,1718554235163,-931.60424191,0.00025,2]
[329663965,1718554235181,-1350.0,0.00025,2]
[329663966,1718554235207,-630.41108301,0.00025,2]
[329663967,1718554235252,-707.39834978,0.00025,2]
[329663968,1718554235266,-326.42008962,0.00025,2]
[329663969,1718554235276,-7432.2410971,0.00025035,2]
[329663970,1718554235291,-1983.21942943,0.00025036,2]
[329663971,1718554235302,-709.61,0.0002505,2]
[329663972,1718554235316,-709.61,0.00025116,2]
[329663973,1718554235344,-173.4,0.00025131,2]
[329663974,1718554235364,-4179.0,0.00025131,2]
[329663975,1718554235384,-23100.175,0.00025131,2]
[329663976,1718554235399,-709.61,0.00025181,2]
[329663977,1718554235413,-709.61,0.00025247,2]
[329663978,1718554235446,-280.0,0.000253,2]
[329663979,1718554235476,-523.71,0.00025756,2]
[329663980,1718554235544,-500.0,0.00025991,2]
[329663981,1718554235585,-500.0,0.00026,2]
[329663982,1718554235601,-268.86,0.00026081,2]
[329663983,1718554235619,-180.0,0.00026203,2]
[329663984,1718554235632,-163.98,0.00026263,2]
[329663985,1718554235646,-200.0,0.00026332,2]
[329663986,1718554235664,-763.74314363,0.00026567,2]
[329663987,1718554235675,-300.0,0.000269,9]
[329663988,1718554235709,-1400.0,0.00027,2]
[329663989,1718554235732,-700.0,0.00027,9]
[329663990,1718554235760,-1000.0,0.000271,9]
[329663991,1718554235771,-39776.6063,0.00027105,2]
[329663992,1718554235787,-5000.0,0.00027183,2]
[329663993,1718554235806,-500.0,0.00027196,2]
[329663994,1718554235818,-250.68717706,0.00027196,2]
[329663995,1718554235829,-500.0,0.00027196,2]
[329663996,1718554235839,-500.0,0.00027196,2]
[329663997,1718554235865,-35556.6453,0.00027197,2]
[329663998,1718554235875,-329.66155528,0.00027197,2]
[329663999,1718554235888,-1575.21014195,0.00027197,2]
[329664000,1718554235898,-2014.98329277,0.000272,2]
[329664001,1718554235930,-1400.0,0.000272,9]
[329664002,1718554235942,-289.82348263,0.00027205,2]
[329664003,1718554235954,-1575.21014192,0.00027263,2]
[329664004,1718554235990,-1000.0,0.00027297,2]
[329664005,1718554236009,-1000.0,0.00027297,2]
[329664006,1718554236028,-150521.19881215,0.00027297,2]
[329664007,1718554236053,-94478.80118785,0.00027297,2]
[329664008,1718554236072,-7500.0,0.00027297,2]
[329664009,1718554236086,-175.20791801,0.00027297,2]
[329664010,1718554236101,-1800.0,0.000273,9]
[329664011,1718554236151,-1575.21014192,0.0002733,2]
[329664012,1718554236180,-177.37658849,0.00027387,2]
[329664013,1718554236216,-150.98,0.00027392,2]
[329664014,1718554236232,-1000.0,0.00027396,2]
[329664015,1718554236246,-500.0,0.00027396,2]
[329664016,1718554236270,-390.01018093,0.00027396,2]
[329664017,1718554236298,-341.76539425,0.00027396,2]
[329664018,1718554236348,-1575.21014192,0.00027396,2]
[329664019,1718554236380,-1205.49676765,0.00027397,2]
[329664020,1718554236416,-169.36899405,0.00027397,2]
[329664021,1718554236467,-1048.34273564,0.00027397,2]
[329664022,1718554236540,-500.0,0.00027397,8]
[329664023,1718554236557,-25101.04460535,0.00027397,2]
[329664024,1718554236584,-505.92387174,0.00027397,8]
[329664025,1718554236620,-500.0,0.00027397,8]
[329664026,1718554236643,-502.57585058,0.00027397,8]
[329664027,1718554236656,-500.95259345,0.00027397,8]
[329664028,1718554236672,-500.0,0.00027397,8]
[329664029,1718554236685,-500.0,0.00027397,8]
[329664030,1718554236698,-500.75352909,0.00027397,8]
[329664031,1718554236714,-500.0,0.00027397,8]
[329664032,1718554236761,-500.0,0.00027397,8]
[329664033,1718554236773,-500.0,0.00027397,8]
[329664034,1718554236791,-500.0,0.00027397,8]
[329664035,1718554236825,-500.0,0.00027397,8]
[329664036,1718554236860,-500.0,0.00027397,8]
[329664037,1718554236885,-367.90867726,0.00027397,8]
[329664038,1718554236908,-505.03399199,0.00027397,8]
[329664039,1718554236924,-500.0,0.00027397,8]
[329664040,1718554236944,-500.0,0.00027397,8]
[329664041,1718554236966,-501.37824318,0.00027397,8]
[329664042,1718554237025,-338.88037541,0.00027397,8]
[329664043,1718554237042,-221.87492993,0.00027397,8]
[329664044,1718554237057,-500.0,0.00027397,8]
[329664045,1718554237080,-500.0,0.00027397,8]
[329664046,1718554237109,-605.20210804,0.00027397,8]
[329664047,1718554237152,-500.0,0.00027397,8]
[329664048,1718554237182,-500.0,0.00027397,8]
[329664049,1718554237202,-500.0,0.00027397,8]
[329664050,1718554237241,-500.0,0.00027397,8]
[329664051,1718554237257,-500.0,0.00027397,8]
[329664052,1718554237275,-500.0,0.00027397,8]
[329664053,1718554237288,-500.0,0.00027397,8]
[329664054,1718554237308,-500.0,0.00027397,8]
[329664055,1718554237322,-500.0,0.00027397,8]
[329664056,1718554237344,-500.0,0.00027397,8]
[329664057,1718554237361,-500.0,0.00027397,8]
[329664058,1718554237405,-500.0,0.00027397,8]
[329664059,1718554237441,-508.88941287,0.00027397,8]
[329664060,1718554237468,-561.67310837,0.00027397,8]
[329664061,1718554237480,-500.0,0.00027397,8]
[329664062,1718554237493,-500.0,0.00027397,8]
[329664063,1718554237524,-500.0,0.00027397,8]
[329664064,1718554237548,-500.0,0.00027397,8]
[329664065,1718554237564,-500.0,0.00027397,8]
[329664066,1718554237576,-500.0,0.00027397,8]
[329664067,1718554237588,-500.0,0.00027397,8]
[329664068,1718554237602,-500.0,0.00027397,8]
[329664069,1718554237618,-575.84258899,0.00027397,8]
[329664070,1718554237638,-500.0,0.00027397,8]
[329664071,1718554237676,-500.0,0.00027397,8]
[329664072,1718554237708,-500.0,0.00027397,8]
[329664073,1718554237728,-500.0,0.00027397,8]
[329664074,1718554237755,-500.0,0.00027397,8]
[329664075,1718554237800,-500.0,0.00027397,8]
[329664076,1718554237824,-500.0,0.00027397,8]
[329664077,1718554237835,-219.29,0.00027397,8]
[329664078,1718554237851,-500.0,0.00027397,8]
[329664079,1718554237864,-500.0,0.00027397,8]
[329664080,1718554237891,-500.0,0.00027397,8]
[329664081,1718554237907,-514.13,0.00027397,8]
[329664082,1718554237921,-500.0,0.00027397,8]
[329664083,1718554237936,-500.0,0.00027397,8]
[329664084,1718554237949,-465.44722122,0.00027397,8]
[329664085,1718554237988,-502.98269158,0.00027397,2]
[329664086,1718554238032,-500.0,0.00027397,8]
[329664087,1718554238060,-500.0,0.00027397,8]
[329664088,1718554238080,-500.0,0.00027397,8]
[329664089,1718554238115,-166.65449596,0.00027397,8]
[329664090,1718554238149,-500.0,0.00027397,8]
[329664091,1718554238176,-557.0578874,0.00027397,8]
[329664092,1718554238215,-500.0,0.00027397,8]
[329664093,1718554238250,-500.0,0.00027397,8]
[329664094,1718554238272,-500.0,0.00027397,8]
[329664095,1718554238310,-500.0,0.00027397,8]
[329664096,1718554238341,-500.0,0.00027397,8]
[329664097,1718554238373,-500.0,0.00027397,8]
[329664098,1718554238401,-323.65,0.00027397,8]
[329664099,1718554238414,-500.0,0.00027397,8]
[329664100,1718554238431,-500.0,0.00027397,8]
[329664101,1718554238445,-500.0,0.00027397,8]
[329664102,1718554238473,-500.0,0.00027397,8]
[329664103,1718554238491,-500.0,0.00027397,8]
[329664104,1718554238514,-500.0,0.00027397,8]
[329664105,1718554238527,-500.0,0.00027397,8]
[329664106,1718554238548,-500.0,0.00027397,8]
[329664107,1718554238560,-500.0,0.00027397,8]
[329664108,1718554238582,-500.0,0.00027397,8]
[329664109,1718554238596,-500.0,0.00027397,8]
[329664110,1718554238624,-500.0,0.00027397,8]
[329664111,1718554238641,-298.18148602,0.00027397,8]
[329664112,1718554238654,-500.0,0.00027397,8]
[329664113,1718554238678,-500.0,0.00027397,8]
[329664114,1718554238701,-500.0,0.00027397,8]
[329664115,1718554238714,-482.82,0.00027397,8]
[329664116,1718554238729,-500.0,0.00027397,8]
[329664117,1718554238742,-500.0,0.00027397,8]
[329664118,1718554238759,-500.0,0.00027397,8]
[329664119,1718554238794,-500.0,0.00027397,8]
[329664120,1718554238808,-500.0,0.00027397,8]
[329664121,1718554238826,-500.0,0.00027397,8]
[329664122,1718554238837,-500.0,0.00027397,8]
[329664123,1718554238860,-617.27945997,0.00027397,8]
[329664124,1718554238872,-500.0,0.00027397,8]
[329664125,1718554238888,-500.0,0.00027397,8]
[329664126,1718554238909,-500.0,0.00027397,8]
[329664127,1718554238941,-512.63325745,0.00027397,8]
[329664128,1718554238962,-150.0,0.00027397,2]
[329664129,1718554238979,-500.0,0.00027397,8]
[329664131,1718554239029,-500.0,0.00027397,8]
[329664134,1718554239233,-338.46664415,0.00027397,8]
[329664136,1718554239264,-500.0,0.00027397,8]
[329664137,1718554239278,-500.0,0.00027397,8]
[329664138,1718554239289,-500.0,0.00027397,8]
[329664139,1718554239302,-500.0,0.00027397,8]
[329664140,1718554239315,-500.0,0.00027397,8]
[329664141,1718554239346,-500.0,0.00027397,8]
[329664142,1718554239363,-500.0,0.00027397,8]
[329664143,1718554239384,-500.0,0.00027397,8]
[329664144,1718554239418,-500.0,0.00027397,8]
[329664145,1718554239447,-500.0,0.00027397,8]
[329664146,1718554239459,-376.56244272,0.00027397,8]
[329664147,1718554239497,-500.0,0.00027397,8]
[329664148,1718554239512,-500.0,0.00027397,8]
[329664149,1718554239525,-500.0,0.00027397,8]
[329664150,1718554239549,-500.0,0.00027397,8]
[329664151,1718554239600,-500.0,0.00027397,8]
[329664152,1718554239640,-500.0,0.00027397,8]
[329664153,1718554239697,-500.0,0.00027397,8]
[329664154,1718554239737,-500.0,0.00027397,8]
[329664155,1718554239757,-500.0,0.00027397,8]
[329664156,1718554239769,-500.0,0.00027397,8]
[329664157,1718554239816,-524.58316728,0.00027397,8]
[329664158,1718554239908,-500.0,0.00027397,8]
[329664159,1718554239921,-284.81,0.00027397,8]
[329664160,1718554239951,-500.0,0.00027397,8]
[329664161,1718554239986,-500.0,0.00027397,8]
[329664162,1718554240048,-500.0,0.00027397,8]
[329664163,1718554240061,-500.0,0.00027397,8]
[329664164,1718554240084,-500.0,0.00027397,8]
[329664165,1718554240101,-568.44033908,0.00027397,8]
[329664166,1718554240136,-500.0,0.00027397,8]
[329664167,1718554240153,-527.48875321,0.00027397,8]
[329664168,1718554240166,-500.0,0.00027397,8]
[329664169,1718554240178,-542.9065224,0.00027397,8]
[329664170,1718554240191,-500.0,0.00027397,8]
[329664171,1718554240256,-500.0,0.00027397,8]
[329664172,1718554240269,-500.0,0.00027397,8]
[329664173,1718554240296,-500.0,0.00027397,8]
[329664174,1718554240329,-500.0,0.00027397,8]
[329664175,1718554240341,-500.0,0.00027397,8]
[329664176,1718554240363,-500.0,0.00027397,8]
[329664177,1718554240376,-500.0,0.00027397,8]
[329664178,1718554240424,-500.0,0.00027397,8]
[329664179,1718554240464,-500.0,0.00027397,8]
[329664180,1718554240477,-500.0,0.00027397,8]
[329664181,1718554240490,-500.0,0.00027397,8]
[329664182,1718554240502,-500.0,0.00027397,8]
[329664183,1718554240515,-500.0,0.00027397,8]
[329664184,1718554240532,-500.0,0.00027397,8]
[329664185,1718554240545,-500.0,0.00027397,8]
[329664186,1718554240559,-500.0,0.00027397,8]
[329664187,1718554240571,-631.78632656,0.00027397,8]
[329664188,1718554240584,-500.0,0.00027397,8]
[329664189,1718554240595,-500.0,0.00027397,8]
[329664190,1718554240633,-568.07,0.00027397,8]
[329664191,1718554240660,-508.088848,0.00027397,8]
[329664192,1718554240673,-604.98865423,0.00027397,8]
[329664193,1718554240688,-500.0,0.00027397,2]
[329664194,1718554240703,-500.0,0.00027397,8]
[329664195,1718554240717,-511.20945793,0.00027397,8]
[329664196,1718554240729,-500.0,0.00027397,8]
[329664197,1718554240745,-500.0,0.00027397,8]
[329664198,1718554240758,-500.0,0.00027397,8]
[329664199,1718554240771,-500.0,0.00027397,8]
[329664200,1718554240796,-500.0,0.00027397,8]
[329664201,1718554240810,-500.0,0.00027397,8]
[329664202,1718554240826,-500.0,0.00027397,8]
[329664203,1718554240840,-500.0,0.00027397,8]
[329664204,1718554240859,-500.0,0.00027397,8]
[329664205,1718554240878,-563.36,0.00027397,8]
[329664206,1718554240891,-500.0,0.00027397,8]
[329664207,1718554240904,-566.9116773,0.00027397,8]
[329664208,1718554240920,-511.08520698,0.00027397,8]
[329664209,1718554240932,-500.0,0.00027397,8]
[329664210,1718554240945,-250.0,0.00027397,8]
[329664211,1718554240957,-253.24195395,0.00027397,8]
[329664212,1718554240968,-500.0,0.00027397,8]
[329664213,1718554240979,-541.26533238,0.00027397,8]
[329664214,1718554240991,-500.0,0.00027397,3]
[329664215,1718554241011,-446.65629677,0.00027397,3]
[329664216,1718554241024,-474.65011001,0.00027397,8]
[329664218,1718554241056,-500.0,0.00027397,8]
[329664219,1718554241084,-500.0,0.00027397,8]
[329664220,1718554241096,-500.0,0.00027397,8]
[329664221,1718554241123,-500.0,0.00027397,8]
[329664222,1718554241144,-500.0,0.00027397,8]
[329664223,1718554241158,-500.0,0.00027397,8]
[329664224,1718554241177,-500.0,0.00027397,8]
[329664225,1718554241190,-197.29,0.00027397,8]
[329664226,1718554241211,-500.0,0.00027397,8]
[329664227,1718554241225,-500.0,0.00027397,8]
[329664228,1718554241240,-500.0,0.00027397,8]
[329664229,1718554241274,-500.0,0.00027397,8]
[329664230,1718554241290,-500.0,0.00027397,8]